[Event "44th Chess Olympiad Open 2022"]
[Site "Chennai"]
[Date "2022.08.01"]
[Round "4.32"]
[White "Gretarsson, Helgi Ass"]
[Black "Kigigha, Bomo"]
[Result "1-0"]
[WhiteElo "2472"]
[BlackElo "2251"]
[Annotator "TA"]
[PlyCount "61"]
[EventDate "2022.??.??"]
[TimeControl "60"]

{[%evp 20,61,0,0,0,0,30,25,63,57,73,41,58,75,79,62,60,41,46,54,54,56,177,168,
151,164,233,233,237,233,575,388,29983,29984,29984,29985,29991,29966,29991,
29992,29996,29997,29997,29998]} 1. c4 {[%emt 0:00:02]} c6 {[%emt 0:00:14]} 2.
d4 {[%emt 0:00:06]} d5 {[%emt 0:00:06]} 3. Nc3 {[%emt 0:00:05]} Nf6 {[%emt 0:
00:00]} 4. e3 {[%emt 0:00:11]} e6 {[%emt 0:00:12]} 5. Nf3 {[%emt 0:00:52]} Nbd7
{[%emt 0:00:06]} 6. Qc2 {[%emt 0:00:14]} b6 {[%emt 0:01:07]} 7. Be2 {[%emt 0:
00:00]} Bb7 {[%emt 0:01:54]} 8. O-O {[%emt 0:00:34]} Bd6 {[%emt 0:00:49]} 9.
Rd1 {[%emt 0:02:45]} Qe7 {[%emt 0:02:16]} 10. b3 {[%emt 0:12:52]} O-O {[%emt 0:
00:00]} 11. Bb2 {[%emt 0:00:01]} Rfd8 {[%emt 0:04:43] is the new trend. D45:
Semi-Slav: 5 e3.} 12. Rac1 {[%emt 0:04:36] [#]} dxc4 $146 {[%emt 0:06:27]} ({
Predecessor:} 12... Rac8 13. Bf1 Bb4 14. a3 Bd6 15. b4 dxc4 16. e4 Bf4 17. e5
Nd5 18. Ne4 c3 19. Bxc3 Bxc1 20. Rxc1 {0-1 (38) Najer,E (2648)-Smirnov,P (2544)
Chess.com INT 2020}) 13. bxc4 {[%emt 0:15:31]} e5 {[%emt 0:00:22] White has an
edge.} 14. Bd3 {[%emt 0:01:47] White is more active.} g6 {[%emt 0:03:14]} 15.
Nd2 {[%emt 0:03:04]} exd4 {[%emt 0:15:00]} 16. exd4 {[%emt 0:00:06]} Re8 {
[%emt 0:02:09]} 17. Nce4 {[%emt 0:05:26]} Nxe4 {[%emt 0:00:34]} 18. Bxe4 {
[%emt 0:00:29]} (18. Nxe4 {feels hotter.} Bf4 19. Rb1 c5 20. d5) 18... Nf6 {
[%emt 0:06:49][%cal Rf6e4]} 19. Bf3 {[%emt 0:00:11]} Qc7 {[%emt 0:00:07]} 20.
g3 {[%emt 0:00:41]} h5 {[%emt 0:01:37] Loses the game.} (20... Rad8 $14) 21. c5
$18 {[%emt 0:03:55]} Be7 {[%emt 0:18:27]} 22. cxb6 {[%emt 0:17:42]} Qxb6 {
[%emt 0:13:37]} (22... Qd7 $142 23. bxa7 (23. Bxc6 Bxc6 24. Qxc6 Qxc6 $14)
23... Rxa7) 23. Nc4 {[%emt 0:00:00]} Qd8 {[%emt 0:00:10]} 24. Ne5 {[%emt 0:00:
00]} Rc8 $2 {[%emt 0:02:45]} (24... Nd5 {is more resistant.} 25. Nxg6 (25. Nxc6
Qd7 $18) 25... Bg5) 25. Nxg6 {[%emt 0:00:00]} fxg6 $2 {[%emt 0:00:00]} (25...
Qd7 $18 26. Nxe7+ Rxe7) 26. Qxg6+ {[%emt 0:00:00] White mates.} Kf8 {[%emt 0:
00:00]} 27. d5 {[%emt 0:00:00]} cxd5 {[%emt 0:00:00]} 28. Rxc8 {[%emt 0:00:00]}
Bxc8 {[%emt 0:02:50] [#]} 29. Bxd5 $1 {[%emt 0:00:00][%csl Gd5][%cal Rg6f7]}
Be6 {[%emt 0:00:04] [#]} (29... Qxd5 30. Rxd5) 30. Bxe6 $1 {[%emt 0:00:00]
[%csl Ge6][%cal Rg6f7] Discovered Attack} Qxd1+ {[%emt 0:10:26]} 31. Kg2 {
[%emt 0:00:00] Weighted Error Value: White=0.19 (very precise) /Black=0.68} 1-0

[Event "44th Chess Olympiad Open 2022"]
[Site "Chennai"]
[Date "2022.08.01"]
[Round "4.32"]
[White "Adebayo, Adegboyega"]
[Black "Petursson, Margeir"]
[Result "1/2-1/2"]
[WhiteElo "2313"]
[BlackElo "2450"]
[Annotator "TA"]
[PlyCount "89"]
[EventDate "2022.??.??"]
[TimeControl "60"]

{[%evp 15,89,0,0,-3,16,-15,-20,-19,12,-6,0,-5,0,0,0,0,-1,-36,-35,-36,-35,-43,0,
-6,0,0,0,0,0,1,1,0,0,0,10,0,9,14,17,0,0,0,9,9,13,13,10,0,0,0,7,0,0,0,0,0,0,0,0,
0,0,0,0,0,0,0,0,0,0,0,0,0,0,0,0,0]} 1. d4 {[%emt 0:00:07]} d5 {[%emt 0:00:04]}
2. Bf4 {[%emt 0:00:14]} Nf6 {[%emt 0:00:28]} 3. e3 {[%emt 0:00:11]} e6 {
[%emt 0:01:10]} 4. Nf3 {[%emt 0:01:12]} c5 {[%emt 0:00:26]} 5. c3 {[%emt 0:00:
00]} Nc6 {[%emt 0:00:43]} 6. Nbd2 {[%emt 0:01:04]} Bd6 {[%emt 0:00:48]} 7. Bg3
{[%emt 0:00:45]} O-O {[%emt 0:09:11]} 8. Bd3 {[%emt 0:04:01]} b6 {[%emt 0:00:
00]} 9. Qe2 {[%emt 0:03:01] now supersedes 9.Ne5. D02:1 d4 d5 2 Nf3 sidelines,
including 2...Nf6 3 g3 and 2...Nf6 3 Bf4.} Qc7 {[%emt 0:08:54]} 10. dxc5 {
[%emt 0:17:17]} bxc5 {[%emt 0:01:32]} 11. e4 {[%emt 0:00:33] [#] aiming for
Bxd6.} Nd7 {[%emt 0:19:42]} 12. O-O {[%emt 0:09:33] [#]} Bxg3 $146 {[%emt 0:00:
00]} ({Predecessor:} 12... Nce5 13. Nxe5 Nxe5 14. Rfe1 Bb7 15. Bxe5 Bxe5 16.
exd5 Bxh2+ 17. Kh1 Bd6 18. dxe6 Rae8 19. exf7+ Qxf7 {½-½ (50) Laux,D (1987)
-Schnabel,L (1753) Wuerzburg 2018}) 13. hxg3 {[%emt 0:00:27]} Rb8 {[%emt 0:00:
00]} 14. b3 {[%emt 0:01:59][%cal Yb2b3,Yb3c4] Prevents c4.} Nde5 {[%emt 0:03:
46]} 15. Nxe5 {[%emt 0:02:52]} Nxe5 {[%emt 0:01:15]} 16. Nf3 {[%emt 0:10:20]}
Nxd3 {[%emt 0:05:21]} 17. Qxd3 {[%emt 0:00:45]} c4 {[%emt 0:00:00]} 18. bxc4 {
[%emt 0:02:55]} dxe4 {[%emt 0:03:56]} (18... Ba6 $5 {[%cal Ra6c4]} 19. Nd2 dxe4
20. Qxe4 Rfd8 $15) 19. Qxe4 {[%emt 0:01:06] The position is equal.} Bb7 {
[%emt 0:00:44]} 20. Qe3 {[%emt 0:01:12]} a5 {[%emt 0:01:03]} 21. Rfd1 {[%emt 0:
02:36]} Bxf3 {[%emt 0:05:24]} 22. gxf3 {[%emt 0:01:16]} Qxc4 {[%emt 0:00:41]}
23. Rd4 {[%emt 0:01:54]} Qc5 {[%emt 0:01:46]} 24. Rad1 {[%emt 0:03:58]} h6 {
[%emt 0:02:29]} 25. Kg2 {[%emt 0:00:44]} Rb2 {[%emt 0:00:00]} 26. R1d2 {
[%emt 0:02:10]} Rb1 {[%emt 0:02:30]} 27. Qd3 {[%emt 0:07:45]} Rc1 {[%emt 0:06:
55]} 28. c4 {[%emt 0:00:13]} g6 {[%emt 0:02:03]} 29. Rd1 {[%emt 0:00:42]} (29.
Re2 {is interesting.} Qh5 30. Rh4 Qf5 31. Rhe4) 29... Rxd1 {[%emt 0:01:08]} 30.
Qxd1 $11 {[%emt 0:00:08] Endgame KQR-KQR} h5 {[%emt 0:02:17]} 31. Rd8 {[%emt 0:
06:21]} Rxd8 {[%emt 0:00:34]} 32. Qxd8+ {[%emt 0:00:04] KQ-KQ} Kg7 {[%emt 0:00:
10]} 33. Qd3 {[%emt 0:00:19]} a4 {[%emt 0:01:02]} 34. Qc2 {[%emt 0:04:01]} a3 {
[%emt 0:00:13]} 35. Qb3 {[%emt 0:00:00]} Kf6 {[%emt 0:01:49]} 36. f4 {[%emt 0:
01:01]} Qc6+ {[%emt 0:00:47]} 37. Kh2 {[%emt 0:02:51] Black must now prevent
Qc3+.} Qc5 {[%emt 0:00:34]} 38. Kg2 {[%emt 0:00:49]} Ke7 {[%emt 0:00:41]} 39.
Qb7+ {[%emt 0:02:44]} Ke8 {[%emt 0:00:00]} 40. Kf3 {[%emt 0:00:50]} Kf8 {
[%emt 0:02:31]} 41. Qb8+ {[%emt 0:30:46]} Ke7 {[%emt 0:30:56]} 42. Qb7+ {
[%emt 0:00:20]} Kf6 {[%emt 0:00:00]} 43. Qb3 {[%emt 0:00:00]} Ke7 {[%emt 0:00:
00]} 44. Qb7+ {[%emt 0:00:00]} Kf6 {[%emt 0:00:00]} 45. Qb3 {[%emt 0:00:00]
Weighted Error Value: White=0.04 (flawless) / Black=0.04 (flawless)} 1/2-1/2

[Event "44th Chess Olympiad Open 2022"]
[Site "Chennai"]
[Date "2022.08.01"]
[Round "4.32"]
[White "Balogun, Oluwafemi"]
[Black "Kjartansson, Gudmundur"]
[Result "1/2-1/2"]
[WhiteElo "2274"]
[BlackElo "2448"]
[Annotator "TA"]
[PlyCount "114"]
[EventDate "2022.??.??"]
[TimeControl "60"]

{[%evp 13,114,22,22,2,41,39,35,45,41,28,41,8,23,20,35,10,55,57,110,91,58,85,
166,169,220,169,168,34,27,25,27,0,0,0,0,0,0,0,0,0,0,0,0,0,0,-198,0,0,0,0,26,12,
82,115,141,22,17,0,372,377,412,126,349,293,883,889,2401,1833,1783,1660,1776,
839,876,835,875,845,843,866,781,660,4827,854,829,608,918,371,357,130,130,130,
130,83,130,84,87,0,88,88,88,88,99,0,104]} 1. e4 {[%emt 0:00:19]} c5 {[%emt 0:
00:00]} 2. Nf3 {[%emt 0:00:09]} d6 {[%emt 0:00:05]} 3. d4 {[%emt 0:00:12]} cxd4
{[%emt 0:00:04]} 4. Nxd4 {[%emt 0:00:06]} Nf6 {[%emt 0:00:06]} 5. Nc3 {[%emt 0:
00:00]} a6 {[%emt 0:00:10]} 6. Be3 {[%emt 0:01:16]} e5 {[%emt 0:00:12]} 7. Nb3
{[%emt 0:00:28]} Be7 {[%emt 0:00:12]} 8. h3 {[%emt 0:01:29] B90: Sicilian
Najdorf: Unusual White 6th moves, 6 Be3 Ng4 and 6 Be3 e5.} O-O {[%emt 0:14:43]}
9. g4 {[%emt 0:04:20]} Be6 {[%emt 0:01:43]} 10. g5 {[%emt 0:05:44] White is
slightly better.} Ne8 {[%emt 0:06:11] [#]} 11. Rg1 $146 {[%emt 0:03:29]} ({
Predecessor:} 11. h4 Nd7 12. Qd2 Nc7 13. O-O-O a5 14. a4 b5 15. Nxb5 Nxb5 16.
Bxb5 Qc7 17. Qc3 Qxc3 18. bxc3 {1-0 (41) Ter Sahakyan,S (2593)-Gabuzyan,H 
(2589) Martuni 2015}) 11... Nc7 {[%emt 0:05:05]} 12. Qf3 {[%emt 0:18:37]} a5 {
[%emt 0:05:57]} 13. a4 {[%emt 0:07:48]} Nc6 {[%emt 0:02:53]} 14. O-O-O {
[%emt 0:02:18]} Nb4 {[%emt 0:02:01]} (14... b5 $5) 15. Nc5 $1 {[%emt 0:11:09]}
Qe8 {[%emt 0:26:19]} (15... Bc8 $14) 16. Nxe6 $16 {[%emt 0:03:19]} fxe6 {
[%emt 0:04:40]} 17. Qg3 {[%emt 0:01:24]} Qg6 {[%emt 0:08:31]} (17... Rd8 $16)
18. h4 $18 {[%emt 0:03:32]} Rfc8 {[%emt 0:06:27]} (18... Rad8 {was worth a try.
} 19. Bb6 Rc8) 19. h5 {[%emt 0:09:15]} Qxh5 {[%emt 0:02:14]} 20. g6 {[%emt 0:
00:00]} (20. Bh3 $18) 20... Qxg6 $14 {[%emt 0:00:18]} 21. Qh2 {[%emt 0:02:53]}
Qf7 {[%emt 0:00:10]} 22. Be2 {[%emt 0:00:50] Bh5 is the strong threat.} (22.
Rh1 $5 {[%cal Rh2h7]}) 22... Ne8 $1 {[%emt 0:01:08]} 23. Bh5 {[%emt 0:03:20]} (
23. Rh1 Nf6 $15) 23... g6 {[%emt 0:00:17]} 24. Bxg6 {[%emt 0:00:26]} hxg6 {
[%emt 0:00:11]} 25. Qh6 {[%emt 0:02:18]} Bf8 {[%emt 0:01:55][%cal Ye7f8,Yf8g7,
Yg7f6]} 26. Rxg6+ $40 {[%emt 0:01:20] White attacks.} Bg7 $1 {[%emt 0:00:15]
Hoping for ...Kf8.} 27. Rh1 {[%emt 0:06:21][%csl Gh1][%cal Rh6h8] Dancing on a
razor blade.} Kf8 $1 {[%emt 0:00:28]} 28. Qg5 {[%emt 0:00:00]} Bf6 $1 {[%emt 0:
00:54]} 29. Qg4 {[%emt 0:00:49]} (29. Qh6+ $11 {and White is okay.} Bg7 30. Qg5
) 29... Ke7 $2 {[%emt 0:02:11]} ({Black should try} 29... d5 $1 $19 {[%cal
Rd5d4] aiming for ...d4.} 30. exd5 exd5) 30. Rhh6 $11 {[%emt 0:00:38]} Kd7 $1 {
[%emt 0:00:42]} 31. Kb1 {[%emt 0:00:45]} Kc6 {[%emt 0:00:00]} 32. Qf3 {[%emt 0:
00:35] White has compensation.} (32. Qe2 $2 Bg7 33. Rxg7 (33. Rxe6 $2 Bxh6 34.
Rxh6 Kc7 $19) (33. Qb5+ $2 Kc7 $19) 33... Nxg7 $19) 32... Qe7 {[%emt 0:00:19]}
(32... Kd7 33. Rxf6 Nxf6 34. Rxf6 $18) (32... Rc7 $11 {remains equal.} 33. Rxf6
(33. Qe2 Re7 $15) 33... Nxf6 34. Rxf6 Qe7) 33. Nb5 $1 $16 {[%emt 0:00:14]} ({
Much worse is} 33. Qe2 Kc7 $15) 33... b6 {[%emt 0:00:39] [#]} 34. c3 {[%emt 0:
00:44] White is much more active.} (34. Qh3 $1 $16 {And now Rh7 would win.} Qf7
35. Qh5) 34... Na6 $1 $11 {[%emt 0:00:00]} 35. Qh3 {[%emt 0:00:32]} Nac7 $2 {
[%emt 0:01:20]} (35... Qf7 $11 36. Qf3 (36. Qf1 $2 Bg7 $19) 36... Qd7) 36. Rh7
$18 {[%emt 0:00:20]} Qd8 {[%emt 0:00:48]} 37. Qf1 $2 {[%emt 0:00:41]} (37. Rg8
$18) 37... d5 $2 {[%emt 0:00:00]} (37... Kb7 $16) 38. f4 {[%emt 0:00:30]} Nd6
$2 {[%emt 0:00:36]} (38... d4) 39. exd5+ {[%emt 0:00:14]} exd5 {[%emt 0:00:18]}
40. fxe5 {[%emt 0:00:10]} Bxe5 {[%emt 0:00:40]} 41. Qd3 {[%emt 0:18:56]
Threatening mate with Bd4.} Bf6 {[%emt 0:22:37]} 42. Bg5 {[%emt 0:00:00]} Bxg5
{[%emt 0:02:59]} 43. Nxd6 {[%emt 0:00:00]} Qxd6 {[%emt 0:00:37]} 44. Rxd6+ {
[%emt 0:00:00]} Kxd6 {[%emt 0:00:00]} 45. Qg3+ {[%emt 0:00:00]} Kc6 {[%emt 0:
00:32]} 46. Qxg5 {[%emt 0:00:00][%cal Yc3c4] Threatens to win with c4!} Rd8 {
[%emt 0:00:37]} 47. c4 {[%emt 0:00:00]} (47. b4 $142 axb4 48. cxb4) 47... dxc4
{[%emt 0:01:16]} 48. Qf6+ {[%emt 0:07:28]} Rd6 {[%emt 0:02:16]} 49. Qf7 {
[%emt 0:00:02]} (49. Qf4 $142 Rc8 50. Ka2) 49... Rc8 {[%emt 0:00:35] [#]} 50.
Qxc4+ $2 {[%emt 0:01:09]} (50. Qf4 $1 $18 {and the rest is easy.}) 50... Kb7
$16 {[%emt 0:00:03]} 51. Qe4+ {[%emt 0:02:11]} Kb8 {[%emt 0:01:26]} 52. Qf4 {
[%emt 0:00:40]} (52. Qe7 $142 Rc6 53. Qd7) 52... Rc6 {[%emt 0:00:34]} (52...
Rcd8 $142 53. Qf7 Rc6) 53. Qe5 {[%emt 0:01:09]} (53. Rd7 $142) 53... Rd8 {
[%emt 0:01:01]} 54. Qf4 {[%emt 0:00:00]} ({White should play} 54. Ka2 $16)
54... Rd1+ {[%emt 0:01:15]} (54... Rc8 $1 $11 55. Rd7 Re8) 55. Ka2 {[%emt 0:00:
08]} Rd8 {[%emt 0:00:24]} 56. Qe5 {[%emt 0:01:01]} Re8 {[%emt 0:00:35]} 57. Qf4
{[%emt 0:00:46]} Rd8 {[%emt 0:00:00] Weighted Error Value: White=0.53/Black=0.
45} 1/2-1/2

[Event "44th Chess Olympiad Open 2022"]
[Site "Chennai"]
[Date "2022.08.01"]
[Round "4.33"]
[White "Megaranto, Susanto"]
[Black "Berend, Fred"]
[Result "1-0"]
[WhiteElo "2529"]
[BlackElo "2307"]
[Annotator "TA"]
[PlyCount "151"]
[EventDate "2022.??.??"]
[TimeControl "60"]

{[%evp 9,150,0,0,3,-4,-19,0,0,12,-22,-20,-11,-14,-10,-20,-14,-17,-14,-6,-19,
-18,-23,-15,-6,0,0,0,0,0,0,0,0,0,0,0,-15,-19,-30,-29,-27,-28,-26,-23,-31,-22,
-22,-13,-22,0,0,0,0,0,0,8,8,8,8,8,8,8,0,8,14,21,21,21,21,12,15,114,114,114,114,
127,127,127,127,127,127,127,33,156,115,127,127,127,127,127,127,29946,29948,
29951,29950,29951,29951,29941,29939,29954,29956,29955,29958,29960,29959,29961,
29959,29961,29962,29962,29964,29963,29963,29965,29952,12795,9447,29969,29968,
29974,29975,29973,29973,29977,29978,29978,29977,29985,29986,29986,29987,29988,
29989,29989,29988,29991,29991,29994,29990,29990,29989,29992,29993,29999]} 1. d4
{[%emt 0:00:04]} Nf6 {[%emt 0:00:05]} 2. Nf3 {[%emt 0:00:16]} d5 {[%emt 0:00:
00]} 3. Bf4 {[%emt 0:00:57]} c5 {[%emt 0:00:08]} 4. c3 {[%emt 0:01:37]} Qb6 {
[%emt 0:04:52]} 5. Qb3 {[%emt 0:00:35]} Nc6 {[%emt 0:04:45]} 6. dxc5 {[%emt 0:
00:00] D02:1 d4 d5 2 Nf3 sidelines, including 2...Nf6 3 g3 and 2...Nf6 3 Bf4.}
Qxc5 {[%emt 0:00:12]} 7. e3 {[%emt 0:00:56]} g6 {[%emt 0:01:40]} 8. Nbd2 {
[%emt 0:05:59] The position is equal.} Bg7 {[%emt 0:00:19]} 9. Qb5 {[%emt 0:00:
00] [#]} Qxb5 $146 {[%emt 0:03:13]} ({Predecessor:} 9... Nd7 10. Nb3 Qxb5 11.
Bxb5 e5 12. Bg3 a6 13. Be2 b5 14. O-O Nb6 15. Nc5 f6 {0-1 (77) Lang,A (2053)
-Schulz,V (2164) Baden 2016}) 10. Bxb5 {[%emt 0:00:06]} O-O {[%emt 0:05:06]}
11. O-O {[%emt 0:04:04]} a6 {[%emt 0:01:55]} 12. Bxc6 {[%emt 0:02:58]} bxc6 {
[%emt 0:00:02]} 13. Be5 {[%emt 0:00:28]} a5 {[%emt 0:02:29]} 14. Rfc1 {[%emt 0:
00:00]} Bf5 {[%emt 0:01:56]} 15. c4 {[%emt 0:02:01]} Rfc8 {[%emt 0:01:06]} 16.
Nd4 {[%emt 0:09:45]} Bd7 {[%emt 0:00:33]} 17. cxd5 {[%emt 0:04:15]} cxd5 {
[%emt 0:00:41]} 18. N2b3 {[%emt 0:08:19]} a4 {[%emt 0:07:30]} 19. Nc5 {[%emt 0:
00:00] Pair of Knights!} Be8 {[%emt 0:00:17]} 20. Nd3 {[%emt 0:01:13]} Ne4 {
[%emt 0:08:16]} 21. Bxg7 {[%emt 0:03:55]} Kxg7 {[%emt 0:00:08]} 22. Rxc8 {
[%emt 0:00:49]} Rxc8 {[%emt 0:00:08]} 23. Rc1 {[%emt 0:00:03]} Rxc1+ {[%emt 0:
00:00]} 24. Nxc1 $11 {[%emt 0:00:05] Endgame KBN-KNN} e5 {[%emt 0:00:00]} 25.
Nc2 {[%emt 0:00:41]} Kf6 {[%emt 0:13:37]} 26. f3 {[%emt 0:01:22]} Nd6 {[%emt 0:
01:04]} 27. Nd3 {[%emt 0:01:27]} Bb5 {[%emt 0:03:39]} 28. Nc5 {[%emt 0:00:44]}
Nc4 {[%emt 0:03:40]} 29. b3 {[%emt 0:00:12]} axb3 {[%emt 0:00:00]} 30. axb3 {
[%emt 0:00:06]} Nb6 {[%emt 0:01:17]} 31. f4 {[%emt 0:01:08]} Nd7 {[%emt 0:21:
58]} 32. Nxd7+ {[%emt 0:01:53]} Bxd7 {[%emt 0:00:01] KB-KN} 33. Kf2 {[%emt 0:
00:47]} Kf5 {[%emt 0:02:48]} 34. fxe5 {[%emt 0:00:34]} Kxe5 {[%emt 0:00:00]}
35. Nd4 {[%emt 0:04:43]} h6 {[%emt 0:03:46]} 36. b4 {[%emt 0:01:11]} f5 {
[%emt 0:01:34]} 37. Ke2 {[%emt 0:05:48]} f4 {[%emt 0:04:34]} 38. Kd3 {[%emt 0:
00:00] Black should prevent Nf3+.} fxe3 {[%emt 0:00:30]} 39. Kxe3 {[%emt 0:00:
00]} g5 {[%emt 0:00:35]} (39... Kd6 $11) 40. Nf3+ $1 $16 {[%emt 0:00:42]} Kd6 {
[%emt 0:00:29]} 41. Kd4 $1 {[%emt 0:30:45] And now Ne5 would win.} Be8 {
[%emt 0:32:48]} 42. Ne5 {[%emt 0:01:38] Strongly threatening Ng4.} Ke6 {
[%emt 0:00:55]} 43. Ng4 $1 {[%emt 0:08:06]} h5 {[%emt 0:00:32]} 44. Ne3 {
[%emt 0:00:07]} Bc6 {[%emt 0:00:00]} 45. Nd1 {[%emt 0:00:00]} (45. g3 $1 $16)
45... Ba8 {[%emt 0:00:00]} (45... h4 $14) 46. Nc3 {[%emt 0:00:00]} Bb7 {
[%emt 0:00:00]} 47. b5 {[%emt 0:00:00][%cal Yb4b5,Yb5b6,Yb6b7] Threatens to
win with Na4.} Kd6 {[%emt 0:00:00]} 48. Na4 {[%emt 0:00:00] Hoping for Nc5.}
Bc8 {[%emt 0:00:00]} 49. Nc5 $1 {[%emt 0:00:00] b6 would kill now.} h4 $2 {
[%emt 0:00:00] This costs Black the game.} (49... Kc7 $16) 50. b6 $1 {[%emt 0:
00:00]} Bg4 {[%emt 0:00:00] [#]} 51. b7 $1 {[%emt 0:00:00]} Kc7 {[%emt 0:00:00]
} 52. Kxd5 {[%emt 0:00:11]} Be2 {[%emt 0:00:00] [#]} 53. Ke4 $1 {[%emt 0:00:59]
} g4 {[%emt 0:00:00]} 54. Kf4 {[%emt 0:01:20]} h3 {[%emt 0:00:00]} 55. g3 {
[%emt 0:00:31]} Kb8 {[%emt 0:00:00]} 56. Kg5 {[%emt 0:00:00]} Ka7 {[%emt 0:00:
00]} 57. Kh4 {[%emt 0:00:12]} Kb8 {[%emt 0:00:00]} 58. Nd7+ {[%emt 0:00:12]}
Kxb7 {[%emt 0:00:00]} 59. Ne5 {[%emt 0:00:06]} Kc7 {[%emt 0:00:00]} 60. Nxg4 {
[%emt 0:00:05]} Kd6 {[%emt 0:00:00]} 61. Kxh3 {[%emt 0:01:17]} Ke6 {[%emt 0:00:
08]} 62. Ne3 {[%emt 0:02:03] Threatening mate with Kh4.} Kf6 {[%emt 0:00:16]}
63. g4 {[%emt 0:00:15] White mates.} Kg6 {[%emt 0:00:20]} 64. Kg3 {[%emt 0:00:
05]} Bd3 {[%emt 0:00:23]} 65. Kf4 {[%emt 0:00:00]} Kh6 {[%emt 0:00:39]} 66. h4
{[%emt 0:00:07][%cal Yh2h4,Yh4h5]} Kg6 {[%emt 0:00:09]} 67. h5+ {[%emt 0:00:08]
} Kh6 {[%emt 0:00:06]} 68. Nf5+ {[%emt 0:00:04]} Kh7 {[%emt 0:00:02]} 69. g5 {
[%emt 0:00:07][%cal Yg4g5,Yg5g6,Yg6g7]} Kg8 {[%emt 0:00:46]} 70. g6 {[%emt 0:
00:07]} Bb5 {[%emt 0:00:00]} 71. Kg5 {[%emt 0:00:10]} Kh8 {[%emt 0:00:15]} 72.
h6 {[%emt 0:00:16]} Bc4 {[%emt 0:00:11]} 73. Ng3 {[%emt 0:01:13]} Bd3 {[%emt 0:
00:11]} 74. Nh5 {[%emt 0:00:11]} Bc2 {[%emt 0:00:14]} 75. g7+ {[%emt 0:00:06]}
Kh7 {[%emt 0:00:00]} 76. Nf6# {[%emt 0:00:09] Weighted Error Value: White=0.06
(flawless) / Black=0.25 (precise)} 1-0

[Event "44th Chess Olympiad Open 2022"]
[Site "Chennai"]
[Date "2022.08.01"]
[Round "4.33"]
[White "Ervan, Mohamad"]
[Black "Steil-Antoni, Fiona"]
[Result "1-0"]
[WhiteElo "2402"]
[BlackElo "2218"]
[Annotator "TA"]
[PlyCount "63"]
[EventDate "2022.??.??"]
[TimeControl "60"]

{[%evp 17,63,33,44,9,20,16,12,3,12,5,26,14,29,0,0,0,51,44,48,41,16,18,28,20,25,
22,114,94,63,80,126,137,179,178,547,552,594,594,579,587,578,575,625,612,846,
767,717,692]} 1. e4 {[%emt 0:00:06]} e5 {[%emt 0:00:07]} 2. Nf3 {[%emt 0:00:06]
} Nc6 {[%emt 0:00:07]} 3. Bb5 {[%emt 0:00:04][%cal Yf1b5,Yb5a4,Ya4b3]} a6 {
[%emt 0:00:07]} 4. Ba4 {[%emt 0:00:09]} Nf6 {[%emt 0:00:14]} 5. O-O {[%emt 0:
00:11]} b5 {[%emt 0:00:16]} 6. Bb3 {[%emt 0:00:07]} Bc5 {[%emt 0:00:18]} 7. c3
{[%emt 0:00:30]} d6 {[%emt 0:00:20]} 8. d4 {[%emt 0:00:07]} Bb6 {[%emt 0:00:12]
} 9. a4 {[%emt 0:00:12]} Rb8 {[%emt 0:00:26]} 10. a5 {[%emt 0:00:00] C78: Ruy
Lopez: Archangelsk and Möller Defences.} Ba7 {[%emt 0:00:13]} (10... Bxa5 $2
11. dxe5 dxe5 12. Qxd8+ Kxd8 13. Bd5 (13. Bxf7 Bb6 $16) 13... Nxd5 14. exd5 $18
) 11. h3 {[%emt 0:00:17]} O-O {[%emt 0:01:06]} 12. Be3 {[%emt 0:03:24] The
position is equal.} Ra8 {[%emt 0:00:30]} 13. Nbd2 {[%emt 0:00:00][%cal Yb1d2,
Yd2f1,Yf1g3]} h6 {[%emt 0:00:14]} 14. Re1 {[%emt 0:00:00]} Re8 {[%emt 0:00:21]}
15. Bc2 $1 {[%emt 0:08:05] is recently more successful than 15.Qc2.} exd4 {
[%emt 0:03:37]} 16. cxd4 {[%emt 0:01:10] [#]} Bd7 $146 {[%emt 0:04:41]} (16...
Nb4 $11) ({Predecessor:} 16... Bb7 17. Bb1 Ne7 18. Nh4 c5 19. d5 Bc8 20. Nf1
Ng6 21. Nxg6 fxg6 22. Ng3 g5 {½-½ (42) Esipenko,A (2682)-Le,Q (2722) Biel
2022}) 17. Bb1 {[%emt 0:05:17]} (17. Bb3 {keeps more tension.} Nb4 18. Bxf7+
Kxf7 19. Qb3+) 17... Ne7 {[%emt 0:16:14]} 18. Nf1 {[%emt 0:15:46]} Ng6 {
[%emt 0:04:02]} 19. Ng3 {[%emt 0:00:30]} c5 $1 {[%emt 0:08:00]} 20. Qd2 {
[%emt 0:00:57][%cal Ye3h6] Hoping for Bxh6!} cxd4 {[%emt 0:12:54]} 21. Bxd4 {
[%emt 0:08:20]} Bc6 {[%emt 0:06:33]} (21... Ne5 $11 {keeps the balance.}) 22.
Qc3 {[%emt 0:21:54]} Bxd4 {[%emt 0:06:49]} 23. Nxd4 {[%emt 0:00:28]} Bb7 {
[%emt 0:01:41] [#]} (23... Bd7 $142) 24. Ndf5 $1 $16 {[%emt 0:02:51] White is
more active.} d5 {[%emt 0:03:53]} 25. Nxg7 {[%emt 0:00:00]} d4 $2 {[%emt 0:04:
17] [#]} (25... Kxg7 {is more resistant.} 26. Nh5+ Kh8) 26. Qd2 $1 $18 {
[%emt 0:00:25] White is clearly winning.} Kxg7 {[%emt 0:02:47]} (26... Qc7 27.
Nxe8) 27. Nf5+ {[%emt 0:00:10] Deflection, Double Attack} Kg8 {[%emt 0:00:07]
[%cal Rf6e4]} 28. Qxh6 {[%emt 0:00:17][%csl Gf5][%cal Rh6g7]} Nh5 {[%emt 0:00:
20] Inhibits Qg7+.} 29. Qxh5 {[%emt 0:01:04]} Qf6 {[%emt 0:00:45]} 30. Ra3 {
[%emt 0:00:22]} Re5 {[%emt 0:01:12]} 31. Rg3 {[%emt 0:01:08] Ba2 is the strong
threat.} Rae8 {[%emt 0:01:03]} 32. Ba2 {[%emt 0:04:43] Weighted Error Value:
White=0.06 (flawless) /Black=0.40} 1-0